{"text_format":"1","workbook":"xlsx","n_sheets":13,"sheets":["Acceuil","Budget","CC","CA","CV","CP","Cadres de Concertation","Tutelle","Services Délégués","Autres données","Marché","Récapitulatif","Indicateurs"],"not_rendered":{"charts":0,"images":2,"macros":1,"external_links":1,"defined_names":0,"comments":0,"pivot_tables":0},"unopened":[],"bounds":{"document_bytes":16777216,"sheet_cells":100000,"rows_first":2000,"rows_last":500,"rows_between":2000,"halvings":0,"cell_chars":16384,"cell_head_chars":4096},"cells_cut":0,"cells_raw":0,"read":"whole","date_system":"1900"}

{"sheet":"Acceuil","index":0,"n_rows":23,"n_cols":16,"rows_kept":23,"cut":false,"hidden":false,"merged":[[6,4,6,18],[7,4,7,18],[9,4,9,18],[16,4,16,18]]}
[]
[]
[]
[]
[]
[]
[null,null,null,null,"COMITE INTERMINISTERIEL DE PILOTAGE DE LA POLITIQUE NATIONALE DE DECENTRALISATION ET DE DECONCENTRATION \n(CIP-PONADEC)"]
[null,null,null,null,"SECRETARIAT PERMANENT"]
[]
[null,null,null,null,"Calcul de l'Indice de bonne Gouvernance Locale (IGL)"]
[]
[null,null,null,null,null,"Département ","LITTORAL",null,"Commune ","COTONOU",null,null,null,null,"Année : ",2022]
[]
[]
[]
[]
[null,null,null,null,"Informations à saisir par catégorie"]
[]
[null,null,null,null,null,null,"Budget",null,null,null,null,"Cadres de Concertation"]
[null,null,null,null,null,null,"Conseil Communal",null,null,null,null,"Tutelle"]
[null,null,null,null,null,null,"Conseil d'Arrondissement",null,null,null,null,"Marchés"]
[null,null,null,null,null,null,"Conseil de Village",null,null,null,null,"Services délégués"]
[null,null,null,null,null,null,"Commissions Permanentes",null,null,null,null,"Autres données"]

{"sheet":"Budget","index":1,"n_rows":5,"n_cols":14,"rows_kept":5,"cut":false,"hidden":false,"merged":[[1,0,1,2],[1,3,1,9],[1,10,1,13],[2,3,2,5],[2,0,3,0],[2,1,3,1],[2,2,3,2],[2,6,3,6],[2,7,3,7],[2,8,3,8],[2,9,3,9],[2,10,3,10],[2,11,3,11],[2,12,3,12],[2,13,3,13]]}
["Retour à l'accueil"]
["Prévision",null,null,"Réalisation",null,null,null,null,null,null,"Autres données financieres"]
["Montant du budget ","Recette fiscales","PAI","Dépenses d'investissement",null,null,"Dépenses totales de fonctionnement","Dépenses d'entretien des équipements et ouvrages","Recettes fiscales ","PAI ","Montant des ressources propres de l'année 2021","Montant des ressources propres de l'année 2022","Montant des cotisations versées à échéance (Intercommunalité et Association de communes)","Montant des cotisations dues à échéance (Intercommunalité et Association de communes)"]
[null,null,null,"Ressources propres (Auto financement)","Investissement provenant de la coopération décentralisée","Autres ressources"]
[82444266814,15547245641,65894529433,9168488883,null,null,8227874909,736582390,14493074261,5813172809,18185791147,16273607353,17000000]

{"sheet":"CC","index":2,"n_rows":9,"n_cols":9,"rows_kept":9,"cut":false,"hidden":false,"merged":[[0,0,0,5],[1,0,1,5],[2,0,2,2],[2,4,3,5],[3,0,3,2]]}
["Retour à l'accueil"]
["Tenue des Sessions ordinaires "]
["Nombre de réunions de municipalité tenues",null,null,2]
["Nombre d'élus du Conseil Communal",null,null,49]
["Sessions","Nombre d'élus présents","Date début session","Date fin session","Date affichage relevé session","Production du rapport d'activités du Maire ",null,"dif","delai"]
["Session N°1",null,null,null,null,null,null,{"$f":"IF(OR(D6=\"\",E6=\"\"),-1,DATEDIF(D6,E6,\"d\"))","v":-1},{"$f":"IF(OR(H6<0,H6>8),0,1)","v":0}]
["Session N°2",46,"2022-04-29","2022-05-03","2022-05-06","OUI",null,{"$f":"IF(OR(D7=\"\",E7=\"\"),-1,DATEDIF(D7,E7,\"d\"))","v":3},{"$f":"IF(OR(H7<0,H7>8),0,1)","v":1}]
["Session N°3",47,"2022-07-27","2022-07-28","2022-08-03","OUI",null,{"$f":"IF(OR(D8=\"\",E8=\"\"),-1,DATEDIF(D8,E8,\"d\"))","v":6},{"$f":"IF(OR(H8<0,H8>8),0,1)","v":1}]
["Session N°4",41,"2022-11-10","2022-11-11","2022-11-16","OUI",null,{"$f":"IF(OR(D9=\"\",E9=\"\"),-1,DATEDIF(D9,E9,\"d\"))","v":5},{"$f":"IF(OR(H9<0,H9>8),0,1)","v":1}]

{"sheet":"CA","index":3,"n_rows":15,"n_cols":2,"rows_kept":15,"cut":false,"hidden":false,"merged":[[0,0,0,1]]}
["Retour à l'accueil"]
["Arrondissements","Nombre de sessions de conseils d’arrondissement tenues"]
["1ER ARRONDISSEMENT",24]
["2EME ARRONDISSEMENT",18]
["3EME ARRONDISSEMENT",18]
["4EME ARRONDISSEMENT",12]
["5EME ARRONDISSEMENT",13]
["6EME ARRONDISSEMENT",13]
["7EME ARRONDISSEMENT",18]
["8EME ARRONDISSEMENT",12]
["9EME ARRONDISSEMENT",17]
["10EME ARRONDISSEMENT",12]
["11EME ARRONDISSEMENT",12]
["12EME ARRONDISSEMENT",13]
["13EME ARRONDISSEMENT",16]

{"sheet":"CV","index":4,"n_rows":170,"n_cols":5,"rows_kept":170,"cut":false,"hidden":false,"merged":[[0,0,0,9],[2,3,2,4],[1,3,1,4],[1,2,3,2],[1,0,3,0],[1,1,3,1],[4,0,16,0],[17,0,29,0],[30,0,42,0],[43,0,54,0],[55,0,69,0],[124,0,136,0],[137,0,155,0],[156,0,169,0],[70,0,88,0],[89,0,100,0],[101,0,108,0],[109,0,114,0],[115,0,123,0]]}
["Retour à l'accueil"]
["Arrondissements","Villages","Nombre de réunions de conseils de village tenues au cours de l’année","Section Villagoise\\urbaine de Gestion Fonctiere (SVGF et SUGF)"]
[null,null,null,"Enquetes Publiques Contradictoires (EPC)"]
[null,null,null,"Nombre de demandes effectuées","Nombre de demandes réalisées"]
["1ER ARRONDISSEMENT","AVOTROU AIMONLONFIDE",3]
[null,"AVOTROU GBEGO",3]
[null,"AVOTROU HOUEZEKOME",4]
[null,"DANDJI",5]
[null,"DANDJI HOKANME",6]
[null,"DONATEN",6]
[null,"FINAGNON",6]
[null,"N'VENAMEDE",3]
[null,"SURU LERE",8]
[null,"TANTO",8]
[null,"TCHANHOUNKPAME",3]
[null,"TOKPLEGBE",4]
[null,"YAGBE",7]
["2EME ARRONDISSEMENT","AHOUASSA",1]
[null,"DJEDJE-LAYE",6]
[null,"GANKPODO",3]
[null,"IREDE",7]
[null,"KOWEGBO",7]
[null,"KPONDEHOU",0]
[null,"KPONDEHOU TCHEMEI",8]
[null,"LOM-NAVA",6]
[null,"MINONTCHOU",7]
[null,"SENADE SEKOU",5]
[null,"SENANDE",7]
[null,"YENAWA",7]
[null,"YENAWA DAHO",4]
["3EME ARRONDISSEMENT","ADJEGOUNLE",8]
[null,"ADOGLETA",3]
[null,"AGBATO",4]
[null,"AGBODJEDO",4]
[null,"AYELAWADJE",8]
[null,"AYELAWADJE AGONGOME",8]
[null,"FIFATIN",7]
[null,"GBENONKPO",7]
[null,"HLACOMEY",6]
[null,"KPANKPAN",7]
[null,"MIDOMBO",7]
[null,"SEGBEYA NORD",7]
[null,"SEGBEYA SUD",8]
["4EME ARRONDISSEMENT","ABOKICODJI CENTRE",4]
[null,"ABOKICODJI LAGUNE",4]
[null,"AKPAKPA DODOME",4]
[null,"DEDOKPO",4]
[null,"ENAGNON",4]
[null,"FIFADJI HOUTO",4]
[null,"GBEDJEWIN",4]
[null,"MISSESSIN",4]
[null,"OHE",4]
[null,"SODJEATINME CENTRE",4]
[null,"SODJEATINME EST",4]
[null,"SODJEATINME OUEST",3]
["5EME ARRONDISSEMENT","AVLEKETE JONQUET",4]
[null,"BOCOSSI TOKPA",3]
[null,"DOTA",2]
[null,"GBEDOKPO",8]
[null,"GBETO",4]
[null,"GUINKOMEY",3]
[null,"MIFONGOU",8]
[null,"MISSEBO",5]
[null,"MISSITE",7]
[null,"NOUVEAU PONT",6]
[null,"TOKPA HOHO",4]
[null,"XWLACODJI KPODJI",3]
[null,"XWLACODJI PLAGE",0]
[null,"ZONGO EHUZU",2]
[null,"ZONGO NIMA",0]
["6EME ARRONDISSEMENT","AHOUANSORI AGATA",0]
[null,"AHOUANSORI AGUE",2]
[null,"AHOUANSORI LADJI",4]
[null,"AHOUANSORI TOWETA",4]
[null,"AHOUANSORI TOWETA KPOTAI",6]
[null,"AIDJEDO",4]
[null,"AIDJEDO AHITO",6]
[null,"AIDJEDO GBEGO",6]
[null,"AIDJEDO VIGNON",2]
[null,"DANTOKPA",2]
[null,"DJIDJE",0]
[null,"DJIDJE AICHEDJI",5]
[null,"GBEDJROMEDE",6]
[null,"GBEDJROMEDE SUD",5]
[null,"HINDE NORD",5]
[null,"HINDE SUD",0]
[null,"JERICHO NORD",6]
[null,"JERICHO SUD",6]
[null,"VOSSA",5]
["7EME ARRONDISSEMENT","DAGBEDJI SIKE",3]
[null,"ENAGNON-SIKE",4]
[null,"FIGNON SIKE",4]
[null,"GBEDOMIDJI",7]
[null,"GBENAN",5]
[null,"GBEWA",0]
[null,"MISSITE-SIKE",5]
[null,"SEDAMI",3]
[null,"SEDJRO SAINT MICHEL",6]
[null,"SEHOGAN SIKE",4]
[null,"TODOTE",2]
[null,"YEVEDO",1]
["8EME ARRONDISSEMENT","AGBODJEDO STE RITA",4]
[null,"AGONTINKON",4]
[null,"GBEDAGBA",4]
[null,"HOUEHOUN",4]
[null,"HOUENOUSSOU STE RITA",4]
[null,"MEDEDJRO",4]
[null,"MINONKPO WOLOGUEDE",4]
[null,"TONATO",4]
["9EME ARRONDISSEMENT","FIFADJI",5]
[null,"KINDONOU",7]
[null,"MENONTIN",7]
[null,"VOSSA-KPODJI",8]
[null,"ZOGBO",6]
[null,"ZOGBOHOUE",7]
["10EME ARRONDISSEMENT","AGOUNVOCODJI",4]
[null,"GBENONKPO",4]
[null,"KOUHOUNOU",3]
[null,"MIDEDJI",4]
[null,"MISSEKPLE",4]
[null,"MISSOGBE",4]
[null,"SETOVI",4]
[null,"VEDOKO",3]
[null,"YENAWA-FIFADJI",2]
["11EME ARRONDISSEMENT","GBEDIGA GUEDEHOUNGUE",4]
[null,"GBEGAMEY AHITO",4]
[null,"GBEGAMEY CENTRE",4]
[null,"GBEGAMEY DODO AYIDJE",4]
[null,"GBEGAMEY GBAGOUDO",4]
[null,"GBEGAMEY MIFONGOU",4]
[null,"HOUEYIHO",4]
[null,"HOUEYIHO TANOU",4]
[null,"SAINT JEAN GBEDIGA",4]
[null,"VODJE ALLOBATIN",4]
[null,"VODJE AYIDOTE",4]
[null,"VODJE CENTRE",4]
[null,"VODJE FINAGNON",4]
["12EME ARRONDISSEMENT","AHOUANLEKO",7]
[null,"AIBATIN DODO",7]
[null,"AKOGBATO",6]
[null,"CADJEHOUN AGONGA",5]
[null,"CADJEHOUN AUPIAIS",7]
[null,"CADJEHOUN AZALOKOGON",4]
[null,"CADJEHOUN DETINSA",7]
[null,"CADJEHOUN GARE",7]
[null,"CADJEHOUN KPOTA",7]
[null,"FIDJROSSE CENTRE",6]
[null,"FIDJROSSE KPOTA",2]
[null,"FIYEGNON HOUTA",2]
[null,"FIYEGNON JACQUOT",7]
[null,"GBODJETIN",4]
[null,"HAIE VIVE",0]
[null,"HLAZOUNTO",7]
[null,"LES COCOTIERS",0]
[null,"VODJE KPOTA",7]
[null,"YEMICODJI",4]
["13EME ARRONDISSEMENT","AGLA AGONGBOMEY",4]
[null,"AGLA AKPLOMEY",7]
[null,"AGLA FIGARO",8]
[null,"AGLA LES PYLONES",6]
[null,"AGLA PETIT CHATEAU",5]
[null,"AGLA SUD",4]
[null,"AGLAFINAFA",0]
[null,"AHOGBOHOUE CITE DE L'EXPERIENCE",5]
[null,"AHOGBOHOUE CITE EUCARISTIE",5]
[null,"AIBATIN KPOTA",5]
[null,"CITE ADJAHA",7]
[null,"GBEDEGBE",6]
[null,"HOUENOUSSOU",5]
[null,"MISSITE",3]

{"sheet":"CP","index":5,"n_rows":16,"n_cols":42,"rows_kept":16,"cut":false,"hidden":false,"merged":[[2,36,2,38],[2,0,3,0],[2,1,3,1],[2,2,3,2],[1,0,1,2],[1,3,1,38],[2,3,2,5],[2,6,2,8],[2,9,2,11],[2,12,2,14],[2,15,2,17],[2,18,2,20],[2,21,2,23],[2,24,2,26],[2,27,2,29],[2,30,2,32],[2,33,2,35]]}
["Retour à l'accueil"]
["Tenue des sessions ordinaires des commissions permanentes"]
["Commissions permanentes (CP)","Nom de la commission","Effectif des membres ","Réunion N°1",null,null,"Réunion N°2",null,null,"Réunion N°3",null,null,"Réunion N°4",null,null,"Réunion N°5",null,null,"Réunion N°6",null,null,"Réunion N°7",null,null,"Réunion N°8",null,null,"Réunion N°9",null,null,"Réunion N°10",null,null,"Réunion N°11",null,null,"Réunion N°12"]
[null,null,null,"Nombre de membres presents ","Nombre de propositions faites ","Nombre de propositions réalisées par le Maire","Nombre de membres presents ","Nombre de propositions faites ","Nombre de propositions réalisées par le Maire","Nombre de membres presents ","Nombre de propositions faites ","Nombre de propositions réalisées par le Maire","Nombre de membres presents ","Nombre de propositions faites ","Nombre de propositions réalisées par le Maire","Nombre de membres presents ","Nombre de propositions faites ","Nombre de propositions réalisées par le Maire","Nombre de membres presents ","Nombre de propositions faites ","Nombre de propositions réalisées par le Maire","Nombre de membres presents ","Nombre de propositions faites ","Nombre de propositions réalisées par le Maire","Nombre de membres presents ","Nombre de propositions faites ","Nombre de propositions réalisées par le Maire","Nombre de membres presents ","Nombre de propositions faites ","Nombre de propositions réalisées par le Maire","Nombre de membres presents ","Nombre de propositions faites ","Nombre de propositions réalisées par le Maire","Nombre de membres presents ","Nombre de propositions faites ","Nombre de propositions réalisées par le Maire","Nombre de membres presents ","Nombre de propositions faites ","Nombre de propositions réalisées par le Maire"]
["CP N°1","Commission des Affaires Economiques et Financieres (CAEF)",null,null,null,null,null,null,null,null,null,null,null,null,null,null,null,null,null,null,null,null,null,null,null,null,null,null,null,null,null,null,null,null,null,null,null,null,null,null,null,{"$f":"C5*COUNTA(D5,G5,J5,M5,S5,V5,Y5,AB5,AE5,AH5,AK5)","v":0}]
["CP N°2","Commission des Affaires Domaniales et Environnementales (CADE)",null,null,null,null,null,null,null,null,null,null,null,null,null,null,null,null,null,null,null,null,null,null,null,null,null,null,null,null,null,null,null,null,null,null,null,null,null,null,null,0]
["CP N°3","Commission des Affaires Sociales et Culturelles (CASC)",null,null,null,null,null,null,null,null,null,null,null,null,null,null,null,null,null,null,null,null,null,null,null,null,null,null,null,null,null,null,null,null,null,null,null,null,null,null,null,0]
["CP N°4",null,null,null,null,null,null,null,null,null,null,null,null,null,null,null,null,null,null,null,null,null,null,null,null,null,null,null,null,null,null,null,null,null,null,null,null,null,null,null,null,0]
["CP N°5",null,null,null,null,null,null,null,null,null,null,null,null,null,null,null,null,null,null,null,null,null,null,null,null,null,null,null,null,null,null,null,null,null,null,null,null,null,null,null,null,0]
["CP N°6",null,null,null,null,null,null,null,null,null,null,null,null,null,null,null,null,null,null,null,null,null,null,null,null,null,null,null,null,null,null,null,null,null,null,null,null,null,null,null,null,0]
["CP N°7",null,null,null,null,null,null,null,null,null,null,null,null,null,null,null,null,null,null,null,null,null,null,null,null,null,null,null,null,null,null,null,null,null,null,null,null,null,null,null,null,0]
["CP N°8",null,null,null,null,null,null,null,null,null,null,null,null,null,null,null,null,null,null,null,null,null,null,null,null,null,null,null,null,null,null,null,null,null,null,null,null,null,null,null,null,0]
["CP N°9",null,null,null,null,null,null,null,null,null,null,null,null,null,null,null,null,null,null,null,null,null,null,null,null,null,null,null,null,null,null,null,null,null,null,null,null,null,null,null,null,0]
["CP N°10",null,null,null,null,null,null,null,null,null,null,null,null,null,null,null,null,null,null,null,null,null,null,null,null,null,null,null,null,null,null,null,null,null,null,null,null,null,null,null,null,0]
["Nombre",null,{"$f":"COUNT(C5:C14)","v":0},0,0,0,0,0,0,0,0,0,0,0,0,0,0,0,0,0,0,0,0,0,0,0,0,0,0,0,0,0,0,0,0,0,0,0,0,null,null,{"$f":"SUM(AP5:AP14)","v":0}]
["Effectif",null,{"$f":"SUM(C5:C14)","v":0},0,0,0,0,0,0,0,0,0,0,0,0,0,0,0,0,0,0,0,0,0,0,0,0,0,0,0,0,0,0,0,0,0,0,0,0]

{"sheet":"Cadres de Concertation","index":6,"n_rows":18,"n_cols":12,"rows_kept":18,"cut":false,"hidden":false,"merged":[[0,0,0,1],[6,3,17,11],[2,3,3,4],[1,0,1,11],[2,0,2,2],[2,5,2,11],[3,0,3,1],[4,0,4,1],[3,5,4,5],[3,6,4,6],[3,7,4,7],[3,8,4,8],[3,9,4,9],[3,10,4,10],[3,11,4,11],[5,3,5,4]]}
["Retour à l'accueil"]
["Tenue des Cadres de Concertation"]
[" Mairie-SDE",null,null,null,null,"Autres Cadres "]
["Effectif des membres du Cadre de Concertation Mairie-SDE",null,0,null,null,"Education","Eau, Hygiène et Assainissement","Agricole","Maire et OSC","Nutrition","Sport","Autres"]
["Nombre de sessions prévues",null,0]
["Sessions","Effectif présent","Date","Nombre de séances tenues",null,null,null,2,1]
["Session N°1"]
["Session N°2"]
["Session N°3"]
["Session N°4"]
["Session N°5"]
["Session N°6"]
["Session N°7"]
["Session N°8"]
["Session N°9"]
["Session N°10"]
["Session N°11"]
["Session N°12"]

{"sheet":"Tutelle","index":7,"n_rows":9,"n_cols":8,"rows_kept":9,"cut":false,"hidden":false,"merged":[[5,4,8,4],[5,5,5,6],[6,5,6,6],[7,5,7,6],[8,5,8,6],[1,4,4,4],[1,5,1,6],[2,5,2,6],[3,5,3,6],[4,5,4,6],[8,0,8,2],[0,0,0,3],[1,0,1,3],[2,0,2,1],[6,0,6,3],[7,0,7,2]]}
["Retour à l'accueil"]
["Participation aux CDCC",null,null,null,"Budget communal (Budget primitif)","Le budget est transmis ou pas.",null,"TRANSMIS"]
["Effectif (Maire et ses adjoints)",null,17,null,null,"Date d'adoption du budget",null,"2021-11-29"]
["Sessions","Effectif présent","Date début session","Date fin session",null,"Date de transmission du budget à la tutelle",null,"2021-12-01"]
["CDCC N°1",16,"2022-01-27","2022-01-27",null,"Date d'approbation du budget par la tutelle",null,"2021-12-31"]
["CDCC N°2",4,"2022-11-14","2022-11-14","Compte Administratif ","Le compte administratif est  transmis ou pas.",null,"TRANSMIS"]
["Conformité des actes",null,null,null,null,"Date d'adoption du compte administratif de l'année 2021",null,"2022-06-10"]
["Nombre d’actes conformes",null,null,63,null,"Date de transmission à la tutelle",null,"2022-06-15"]
["Nombre d’actes soumis pour approbation",null,null,63,null,"Date d'approbation du compte administratif par la tutelle",null,"2022-06-30"]

{"sheet":"Services Délégués","index":8,"n_rows":5,"n_cols":30,"rows_kept":5,"cut":false,"hidden":false,"merged":[[1,26,2,27],[1,28,2,29],[0,0,0,21],[1,0,1,5],[1,6,1,17],[2,0,2,1],[2,2,2,3],[2,4,2,5],[2,6,2,7],[2,8,2,9],[2,10,2,11],[2,12,2,13],[2,14,2,15],[2,16,2,17],[2,18,2,19],[1,18,1,25],[2,24,2,25],[2,20,2,21],[2,22,2,23]]}
["Retour à l'accueil"]
["EAU",null,null,null,null,null,"ASSAINISSEMENT",null,null,null,null,null,null,null,null,null,null,null,"SERVICES MARCHANDS",null,null,null,null,null,null,null,"PANNEAUX PUBLICITAIRES",null,"TOTAL"]
["AEV",null,"FPM",null,"PEA",null,"Entretien des voies urbaines",null,"Eclairage public",null,"Collecte et traitement des déchets",null,"Evacuation des eaux usées",null,"Gestion des cimétieres",null,"Gestion des espaces verts",null,"Gestion des marchés",null,"Gestion des abattoirs",null,"Promotion du tourisme",null,"Gestions des gares routieres"]
["PREVUES","DELEGUEES","PREVUES","DELEGUEES","PREVUES","DELEGUEES","PREVUS","DELEGUES","PREVUS","DELEGUES","PREVUS","DELEGUES","PREVUS","DELEGUES","PREVUS","DELEGUES","PREVUS","DELEGUES","PREVUS","DELEGUES","PREVUS","DELEGUES","PREVUS","DELEGUES","PREVUS","DELEGUES","PREVUS","DELEGUES","PREVUS","DELEGUES"]
[0,0,0,0,0,0,0,0,0,0,0,0,0,0,2,0,2,0,32,0,0,0,0,0,13,0,null,null,{"$f":"SUM(A5,C5,E5,G5,I5,K5,M5,O5,Q5,S5,U5,W5,Y5,AA5)","v":49},{"$f":"SUM(B5,D5,F5,H5,J5,L5,N5,P5,R5,T5,V5,X5,Z5,AB5)","v":0}]

{"sheet":"Autres données","index":9,"n_rows":37,"n_cols":4,"rows_kept":37,"cut":false,"hidden":false,"merged":[[0,0,0,3],[1,0,1,2],[18,0,18,1],[19,0,19,1],[26,0,26,1],[2,0,3,1],[4,0,5,1],[6,0,7,1],[8,0,9,1],[14,0,17,1],[10,0,13,0],[10,1,12,1],[13,1,13,2],[27,0,27,1],[31,0,32,1],[33,0,34,1],[35,0,36,1],[20,0,21,1],[22,0,23,1],[24,0,25,1],[28,0,30,1]]}
["Retour à l'accueil"]
["Données à collecter",null,null,"Valeurs"]
["Fonctionalité des services de la mairie",null,"Nombre de services prévus.",45]
[null,null,"Nombre de services fonctionnels",45]
["Manuel de procédure",null,"Existence du manuel de procédure","OUI"]
[null,null,"Manuel de procédure actualisé.","OUI"]
["Evaluation du personnel",null,"Nombre de personnes évalué",970]
[null,null,"Effectif du personnel",1040]
["Adequation profil/poste",null,"Nombre de postes occupés dans la commune",144]
[null,null,"Nombre d'agents dont le profil correspond au poste occupé",144]
["Données Foncieres","Commission de Gestion foncière (COGEF)","Existence de la COGEF","OUI"]
[null,null,"Nombre d'Attestation de  Détention Coutumiere (ADC) demandé",0]
[null,null,"Nombre d'Attestation de  Détention Coutumiere (ADC) traité",0]
[null,"Nombre de contentieux fonciers impliquant la commune",null,63]
["Système d'information ",null,"Existence d’un système de classement et d’archivage","OUI"]
[null,null,"Existence d’une personne en charge du classement des archivages","OUI"]
[null,null,"Existence d’un local dédié à l’archivage","OUI"]
[null,null,"Existence de documents archivés.","OUI"]
["Nombre de délégations",null,"Nombre de délégations de signature pris.",0]
["Attributions  de pouvoir",null,"Nombre d'attributions  de pouvoir pris.",0]
["Séances de reddition de comptes",null,"Nombre   de séances tenues",1]
[null,null,"Nombre de séances prévues.",2]
["Activités spécifiques en faveur des femmes ",null,"Nombre  d’activités spécifiques réalisées en faveur des femmes ",1]
[null,null,"Nombre d’activités réalisées dans le PTA",1]
["Informations sur les prestations de la commune",null,"Existence d’un lieu publique dédié à l'informations sur les prestations de la commune","OUI"]
[null,null,"Existence d'une personne en charge de l'information","OUI"]
["SDAC en cours de validité",null,"Existence  ou non d'un SDAC ","NON"]
["PDC en cours de validité",null,"Existence ou non d’un PDC","OUI"]
["Suivi évaluation des PTA/PAI/PAD",null,"Nombre de séances de suivi évaluation des PTA",4]
[null,null,"Nombre de séances de suivi évaluation des PAI",4]
[null,null,"Nombre de séances de suivi évaluation des PAD",0]
["Infrastructures économiques et marchandes",null,"Nombre réalisées en année 2022",0]
[null,null,"Nombre réalisées en année 2021",0]
["TBS",null,"Existence  d’un TBS actualisé ","OUI"]
[null,null,"Date d’actualisation","2021-01-01"]
["Coopération décentralisée",null,"Nombre  d’accord actif",2]
[null,null,"Nombre d’activités réalisées provenants de ces accords ",3]

{"sheet":"Marché","index":10,"n_rows":12,"n_cols":126,"rows_kept":12,"cut":false,"hidden":false,"merged":[[6,0,8,0],[6,1,8,1],[6,2,6,3],[6,4,6,5],[6,6,6,7],[6,8,6,9],[0,0,0,7],[1,0,1,3],[1,5,5,5],[2,0,2,3],[3,0,3,3],[4,0,4,3],[5,0,5,3],[6,22,6,23],[6,24,6,25],[6,26,6,27],[6,28,6,29],[6,30,6,31],[6,32,6,33],[6,10,6,11],[6,12,6,13],[6,14,6,15],[6,16,6,17],[6,18,6,19],[6,20,6,21],[6,50,6,51],[6,52,6,53],[6,54,6,55],[6,56,6,57],[6,34,6,35],[6,36,6,37],[6,38,6,39],[6,40,6,41],[6,42,6,43],[6,44,6,45],[6,124,6,125],[7,2,7,3],[7,4,7,5],[7,6,7,7],[7,8,7,9],[7,10,7,11],[7,12,7,13],[6,106,6,107],[6,108,6,109],[6,110,6,111],[6,112,6,113],[6,114,6,115],[6,116,6,117],[6,94,6,95],[6,96,6,97],[6,98,6,99],[6,100,6,101],[6,102,6,103],[6,104,6,105],[6,82,6,83],[6,84,6,85],[6,86,6,87],[6,88,6,89],[6,90,6,91],[7,14,7,15],[7,16,7,17],[7,18,7,19],[7,20,7,21],[7,22,7,23],[7,24,7,25],[6,118,6,119],[6,120,6,121],[6,122,6,123],[6,92,6,93],[6,70,6,71],[6,72,6,73],[6,74,6,75],[6,76,6,77],[6,78,6,79],[6,80,6,81],[6,58,6,59],[6,60,6,61],[6,62,6,63],[6,64,6,65],[6,66,6,67],[6,68,6,69],[6,46,6,47],[6,48,6,49],[7,38,7,39],[7,40,7,41],[7,42,7,43],[7,44,7,45],[7,46,7,47],[7,48,7,49],[7,26,7,27],[7,28,7,29],[7,30,7,31],[7,32,7,33],[7,34,7,35],[7,36,7,37],[7,62,7,63],[7,64,7,65],[7,66,7,67],[7,68,7,69],[7,70,7,71],[7,72,7,73],[7,50,7,51],[7,52,7,53],[7,54,7,55],[7,56,7,57],[7,58,7,59],[7,60,7,61],[7,86,7,87],[7,88,7,89],[7,90,7,91],[7,92,7,93],[7,94,7,95],[7,96,7,97],[7,74,7,75],[7,76,7,77],[7,78,7,79],[7,80,7,81],[7,82,7,83],[7,84,7,85],[7,122,7,123],[7,124,7,125],[7,110,7,111],[7,112,7,113],[7,114,7,115],[7,116,7,117],[7,118,7,119],[7,120,7,121],[7,98,7,99],[7,100,7,101],[7,102,7,103],[7,104,7,105],[7,106,7,107],[7,108,7,109]]}
["Retour à l'accueil"]
["Type de commune",null,null,null,"Commune à statut particulier"]
["Plan de passation des marchés publics publiés",null,null,null,"OUI"]
["Nombre de marchés publics passés hors plan de passation des marchés ",null,null,null,0]
["Nombre de marchés conclus dans l'année",null,null,null,62]
["Nombre de marchés conclus dans l’année ayant respecté les procédures",null,null,null,62]
["Mode de passation","Délai de passation"," Marché N°1",null," Marché N°2",null," Marché N°3",null,"Marché N°4",null,"Marché N°5",null,"Marché N°6",null,"Marché N°7",null,"Marché N°8",null,"Marché N°9",null,"Marché N°10",null,"Marché N°11",null,"Marché N°12",null,"Marché N°13",null,"Marché N°14",null,"Marché N°15",null,"Marché N°16",null,"Marché N°17",null,"Marché N°18",null,"Marché N°19",null,"Marché N°20",null,"Marché N°21",null,"Marché N°22",null,"Marché N°23",null,"Marché N°24",null,"Marché N°25",null,"Marché N°26",null,"Marché N°27",null,"Marché N°28",null,"Marché N°29",null,"Marché N°30",null,"Marché N°31",null,"Marché N°32",null,"Marché N°33",null,"Marché N°34",null,"Marché N°35",null,"Marché N°36",null,"Marché N°37",null,"Marché N°38",null,"Marché N°39",null,"Marché N°40",null,"Marché N°41",null,"Marché N°42",null,"Marché N°43",null,"Marché N°44",null,"Marché N°45",null,"Marché N°46",null,"Marché N°47",null,"Marché N°48",null,"Marché N°49",null,"Marché N°50",null,"Marché N°51",null,"Marché N°52",null,"Marché N°53",null,"Marché N°54",null,"Marché N°55",null,"Marché N°56",null,"Marché N°57",null,"Marché N°58",null,"Marché N°59",null,"Marché N°60",null,"Marché N°61",null,"Marché N°62"]
[null,null,"Construction de voies pavées ou bitumées (Renouvellement)",null,"Acquisition de fournitures de bureau au profit de la Mairie de Cotonou",null,"Acquisition de consommables informatiques au profit de la Mairie de Cotonou",null,"Acquisition de mobiliers de bureau au profit de la DEPP, RFU, 1ER, et 3eme Arrondissement guichet unique et autres bureaux",null,"Construction de CEG",null,"Accord-cadre pour l'entretien des espaces verts jardins monuments et places publiques (DRP)",null,"Acquisition de logiciels de gestion des ressources humaines",null,"Acquisition des plans, mise en terre et entretien sur un an",null,"Acquisition et installation de dispositif de contrôle d'accès (logiciels de gestion de présence à la Mairie et dans les arrondissements)",null,"Construction de fosses individuelles au cimetière de Somè",null,"Prévention des risques et catastrophes naturelles",null,"Traitement, conservation et mise à jour des archives centrales",null,"Maintenance et mise à jour de logiciels de gestion financière et comptable",null,"Prestation pour la mise à disposition d’ouvriers spécialisés et de manœuvres",null,"Entretien des bâtiments administratifs ",null,"Acquisition de matériels et outillages au profit du service de l’adressage, DAJuF, DST et DEPP, de moto pompe à haut débit et d’équipements pour la mise en place de la radio (studio 1) ",null,"Acquisition de matériels et de fournitures au profit des enfants des écoles et collèges de Cotonou",null,"Construction d’un pôle numérique de service ",null,"Installation, réhabilitation ou réfection des réseaux électriques alimentés en énergie solaire (acquisition et installation de lampadaires solaires dans la ville de Cotonou (Lot 1 et 2)",null,"Organisation de fêtes et cérémonies au profit de la Mairie de Cotonou",null,"Installation et mise à jour du site internet de la Mairie de Cotonou (câblage du réseau internet)",null,"Etude d’identification, de faisabilité économique et environnementale du projet de construction des toilettes publiques mobiles ou fixes dans la ville de Cotonou",null,"Prix d’excellence aux apprenants ",null,"Travaux de réhabilitation des installations du réseau d'éclairage public de la ville de Cotonou pour la fête du 1er Août",null,"Acquisition de fournitures de bureau et de diverses impressions dans le cadre du programme de la planification familiale et de la santé sexuelle (PF/SSRAJ) dans la ville de Cotonou",null,"Construction de la gare routière de Hindé dans le 6ème arrondissement de Cotonou, lot 1",null,"Construction, reconstruction ou réfection des écoles primaires et maternelles, lot 4",null,"Construction, reconstruction ou réfection des écoles primaires et maternelles, lot 6",null,"Construction, reconstruction ou réfection des écoles primaires et maternelles, lot 7",null,"Construction, reconstruction ou réfection des écoles primaires et maternelles, lot 1",null,"Construction, reconstruction ou réfection des écoles primaires et maternelles, lot 2",null,"Acquisition de trois (3) pickup au profit de la DPM, SRPRNF et DST, de cinq (05) véhicules de type 4x4 au profit de l’exécutif, de six (06) véhicules de type 4x4 au profit des Présidents de commission et de deux(02) niveleuses, lot 2",null,"Réalisation des enquêtes fiscales au profit du Registre Foncier Urbain (RFU) de Cotonou",null,"Construction d'une unité de transformation de fruit et de légumes dans le magasin de stockage d'Akogbato au 12ème arrondissement de Cotonou",null,"Entretien de voies en terre dans les arrondissements de Cotonou (1er au 8eme arrondissement de la ville de Cotonou: lot 1)",null,"Construction, reconstruction de voies en terre dans les arrondissements de Cotonou (1er aux 9 ème arrondissements de la ville Cotonou : lot 1)",null,"Acquisition de produits d’entretien au profit de la Mairie de Cotonou",null,"Acquisition de 140 motos hommes pour les chefs quartiers, acquisition de 25 motos dames pour les chefs quartiers, acquisition de 16 motos à petits cylindrés et petits corps au profit de la DAJuF, DSEF, RFU, DEPP (SITeC), DST, PRMP, CCMP et acquisition de 20 motos gros cylindrés et gros corps au profit de la DPM",null,"Acquisition d’équipements pour WEB TV et la mise en place de la Radio",null,"Accord-cadre pour l’entretien des cimetières",null,"Réhabilitation des espaces verts ",null,"Acquisition de matériels informatiques (lot 1 : ordinateurs)",null,"Couverture sanitaire des autorités, responsables, conseillers municipaux et du personnel de la Mairie de Cotonou",null,"Acquisition de fournitures scolaires, confection et multiplication des épreuves pour les TD dans les écoles et collèges de Cotonou",null,"Réseau d'assainissement (construction d'ouvrages d'assainissement dans le premier arrondissement de Cotonou) ",null,"Achèvement des travaux de construction du siège du 6eme arrondissement",null,"Accord-cadre pour la gestion d'une plateforme ALLO MAIRIE pour renseigner les citoyens sur les formalités administratives et recueillir leurs avis et plaintes ",null,"Acquisition de matériels agricoles",null,"Acquisition de valeurs inactives",null,"Aménagement des aires de manifestations (lot 1 et 2)",null,"Acquisition et pose d'équipements de signalisation   (2 lots)",null,"Acquisition de deux (02) PICKUP au profit des structures de la Mairie, de cinq (05) matériels automobiles au profit des responsables et du Trésorier Communal puis de deux (02) camions nacelles",null,"Acquisition de chicanes et faisceaux métalliques",null,"Réalisation des abris modernes pour les agents de la DPM au niveau des carrefours et pour les conducteurs de taxi-motos ",null,"Construction de bâtiment sanitaire lot 1",null,"Construction, reconstruction ou réfection des CEG (lot 1 et 2)",null,"Recrutement d’un cabinet pour la formation du personnel de la Mairie de Cotonou",null,"Acquisition de  kits scolaires au profit des apprenants issus des couches sociales vulnérables et victimes de déguerpissement dans la ville de Cotonou",null,"Sélection d'un cabinet chargé du recrutement du personnel de la radio municipale de Cotonou",null,"Sélection d'un prestataire chargé de l'illumination et embellissement de la ville de Cotonou au titre de l'année 2022",null,"Acquisition de vivres alimentaires au profit des centres sociaux de la ville de Cotonou",null,"Acquisition de kits alimentaires au profit des victimes d'inondation dans la ville de Cotonou"]
[null,86,"Type de marchés publics ","Nombre de jours consacrés à la passation","Type de marchés publics ","Nombre de jours consacrés à la passation","Type de marchés publics ","Nombre de jours consacrés à la passation","Type de marchés publics ","Nombre de jours consacrés à la passation","Type de marchés publics ","Nombre de jours consacrés à la passation","Type de marchés publics ","Nombre de jours consacrés à la passation","Type de marchés publics ","Nombre de jours consacrés à la passation","Type de marchés publics ","Nombre de jours consacrés à la passation","Type de marchés publics ","Nombre de jours consacrés à la passation","Type de marchés publics ","Nombre de jours consacrés à la passation","Type de marchés publics ","Nombre de jours consacrés à la passation","Type de marchés publics ","Nombre de jours consacrés à la passation","Type de marchés publics ","Nombre de jours consacrés à la passation","Type de marchés publics ","Nombre de jours consacrés à la passation","Type de marchés publics ","Nombre de jours consacrés à la passation","Type de marchés publics ","Nombre de jours consacrés à la passation","Type de marchés publics ","Nombre de jours consacrés à la passation","Type de marchés publics ","Nombre de jours consacrés à la passation","Type de marchés publics ","Nombre de jours consacrés à la passation","Type de marchés publics ","Nombre de jours consacrés à la passation","Type de marchés publics ","Nombre de jours consacrés à la passation","Type de marchés publics ","Nombre de jours consacrés à la passation","Type de marchés publics ","Nombre de jours consacrés à la passation","Type de marchés publics ","Nombre de jours consacrés à la passation","Type de marchés publics ","Nombre de jours consacrés à la passation","Type de marchés publics ","Nombre de jours consacrés à la passation","Type de marchés publics ","Nombre de jours consacrés à la passation","Type de marchés publics ","Nombre de jours consacrés à la passation","Type de marchés publics ","Nombre de jours consacrés à la passation","Type de marchés publics ","Nombre de jours consacrés à la passation","Type de marchés publics ","Nombre de jours consacrés à la passation","Type de marchés publics ","Nombre de jours consacrés à la passation","Type de marchés publics ","Nombre de jours consacrés à la passation","Type de marchés publics ","Nombre de jours consacrés à la passation","Type de marchés publics ","Nombre de jours consacrés à la passation","Type de marchés publics ","Nombre de jours consacrés à la passation","Type de marchés publics ","Nombre de jours consacrés à la passation","Type de marchés publics ","Nombre de jours consacrés à la passation","Type de marchés publics ","Nombre de jours consacrés à la passation","Type de marchés publics ","Nombre de jours consacrés à la passation","Type de marchés publics ","Nombre de jours consacrés à la passation","Type de marchés publics ","Nombre de jours consacrés à la passation","Type de marchés publics ","Nombre de jours consacrés à la passation","Type de marchés publics ","Nombre de jours consacrés à la passation","Type de marchés publics ","Nombre de jours consacrés à la passation","Type de marchés publics ","Nombre de jours consacrés à la passation","Type de marchés publics ","Nombre de jours consacrés à la passation","Type de marchés publics ","Nombre de jours consacrés à la passation","Type de marchés publics ","Nombre de jours consacrés à la passation","Type de marchés publics ","Nombre de jours consacrés à la passation","Type de marchés publics ","Nombre de jours consacrés à la passation","Type de marchés publics ","Nombre de jours consacrés à la passation","Type de marchés publics ","Nombre de jours consacrés à la passation","Type de marchés publics ","Nombre de jours consacrés à la passation","Type de marchés publics ","Nombre de jours consacrés à la passation","Type de marchés publics ","Nombre de jours consacrés à la passation","Type de marchés publics ","Nombre de jours consacrés à la passation","Type de marchés publics ","Nombre de jours consacrés à la passation","Type de marchés publics ","Nombre de jours consacrés à la passation","Type de marchés publics ","Nombre de jours consacrés à la passation","Type de marchés publics ","Nombre de jours consacrés à la passation","Type de marchés publics ","Nombre de jours consacrés à la passation"]
["Appel Offre Ouvert",46,"Travaux",90,null,null,null,null,null,null,null,null,null,null,null,null,null,null,null,null,null,null,null,null,null,null,null,null,null,null,null,null,null,null,"Fournitures et Services",90,"Travaux",90,"Travaux",90,null,null,null,null,null,null,"Fournitures et Services",90,"Travaux ( gré à gré)",15,null,null,null,null,"Travaux",90,"Travaux",90,"Travaux",90,"Travaux",90,"Travaux",90,"Fournitures et Services",90,"Prestation Intellectuelle",120,null,null,"Travaux",90,"Travaux",90,null,null,"Fournitures et Services",90,null,null,null,null,null,null,"Fournitures et Services",90,"Fournitures et Services",90,null,null,null,null,null,null,null,null,null,null,null,null,"Travaux",90,"Fournitures et Services",120,"Fournitures et Services",90,"Fournitures et Services",90,null,null,null,null,"Travaux",90,null,null,"Fourniture (gré à gré)",10,null,null,null,null,"Fourniture (gré à gré)",15]
["Demande de renseignement",27,null,null,"Fournitures et Services",30,"Fournitures et Services",30,"Fournitures et Services",30,"Travaux",30,"Fournitures et Services",30,null,null,null,null,"Fournitures et Services",30,"Travaux",30,null,null,"Fournitures et Services",30,"Fournitures et Services",30,"Fournitures et Services",30,"Fournitures et Services",30,"Fournitures et Services",30,null,null,null,null,null,null,"Fournitures et Services",30,"Travaux",30,"Prestation intellectuelle réalisée par un cabinet",30,null,null,null,null,null,null,"Travaux",30,null,null,null,null,null,null,null,null,null,null,null,null,null,null,"Travaux",30,null,null,null,null,"Fournitures et Services",30,null,null,"Fournitures et Services",30,"Fournitures et Services",30,"Travaux",30,null,null,null,null,"Fournitures et Services",30,"Travaux",120,"Travaux",30,"Fournitures et Services",30,null,null,"Fournitures et Services",30,null,null,null,null,null,null,null,null,"Travaux",120,"Travaux",120,null,null,"Prestation intellectuelle réalisée par un cabinet",30,null,null,null,null,"Fournitures et Services",30,null,null,"Fourniture (gré à gré)",15]
["Demande de cotation",65,null,null,null,null,null,null,null,null,null,null,null,null,"Fournitures et Services",30,"Fournitures et Services",30,null,null,null,null,"Fournitures et Services",30,null,null,null,null,null,null,null,null,null,null,null,null,null,null,null,null,null,null,null,null,null,null,null,null,null,null,"Fournitures et Services",30,null,null,null,null,null,null,null,null,null,null,null,null,null,null,null,null,null,null,null,null,null,null,null,null,null,null,null,null,null,null,null,null,null,null,null,null,null,null,null,null,null,null,null,null,"Fournitures et Services",30,null,null,null,null,null,null,null,null,null,null,null,null,null,null,null,null,null,null,null,null,"Prestation intellectuelle réalisée par un cabinet",30]

{"sheet":"Récapitulatif","index":11,"n_rows":93,"n_cols":6,"rows_kept":93,"cut":false,"hidden":true,"merged":[[0,0,0,1],[1,0,1,1],[2,0,2,1],[3,0,3,1],[4,0,4,1],[5,0,5,1],[6,0,6,1],[7,0,7,1],[8,0,8,1],[9,0,9,1],[10,0,10,1],[11,0,11,1],[12,0,12,1],[13,0,13,1],[14,0,14,1],[15,0,15,1],[16,0,16,1],[17,0,17,1],[18,0,18,1],[19,0,19,1],[20,0,20,1],[21,0,21,1],[22,0,22,1],[23,0,23,1],[24,0,24,1],[25,0,25,1],[26,0,26,1],[27,0,27,1],[28,0,28,1],[29,0,29,1],[30,0,30,1],[31,0,31,1],[32,0,32,1],[33,0,33,1],[34,0,34,1],[38,0,38,1],[39,0,39,1],[40,0,40,1],[41,0,41,1],[42,0,42,1],[43,0,43,1],[44,0,44,1],[45,0,45,1],[46,0,46,1],[47,0,47,1],[48,0,48,1],[49,0,49,1],[50,0,50,1],[51,0,51,1],[52,0,52,1],[53,0,53,1],[54,0,54,1],[55,0,55,1],[56,0,56,1],[57,0,57,1],[64,0,64,1],[65,0,65,1],[66,0,66,1],[67,0,67,1],[58,0,58,1],[59,0,59,1],[60,0,60,1],[61,0,61,1],[62,0,62,1],[35,0,37,0],[78,0,78,1],[81,0,81,1],[82,0,82,1],[83,0,83,1],[73,0,73,1],[74,0,74,1],[75,0,75,1],[76,0,76,1],[77,0,77,1],[68,0,68,1],[69,0,69,1],[70,0,70,1],[71,0,71,1],[72,0,72,1],[63,0,63,1],[91,0,91,1],[92,0,92,1],[79,0,79,1],[80,0,80,1],[85,0,85,1],[88,0,88,1],[90,0,90,1],[86,0,86,1],[87,0,87,1],[89,0,89,1],[84,0,84,1]]}
["Données à traiter",null,"Valeurs"]
["Nombre de sessions ordinaires tenues",null,{"$f":"COUNTA(CC!C6:C9)","v":3}]
["Nombre de services prévus.",null,{"$f":"'Autres données'!D3","v":45}]
["Nombre de services existant doté en personnel.",null,{"$f":"'Autres données'!D4","v":45}]
["Nombre d’élus du conseil communal",null,{"$f":"CC!D4","v":49}]
["Nombre de conseillers présents à chaque conseil communal",null,{"$f":"SUMIF(CC!C6:C9,\"<>\",CC!B6:B9)","v":134}]
["Existence du manuel de procédure actualisé.",null,{"$f":"IF(OR('Autres données'!D5=\"NON\",'Autres données'!D5=\"\"),0,IF('Autres données'!D6=\"OUI\",1,0.5))","v":1}]
["Nombre de fiches d’évaluation du personnel évalué dans l’année.",null,{"$f":"'Autres données'!D7","v":970}]
["Nombre de personnes à évaluer.",null,{"$f":"'Autres données'!D8","v":1040}]
["Nombre de commissions permanentes existantes.",null,{"$f":"CP!C15","v":0}]
["Nombre de sessions des commissions permamentes",null,{"$f":"SUM(CP!D15,CP!G15,CP!J15,CP!M15,CP!P15,CP!V15,CP!Y15,CP!AB15,CP!AE15,CP!AH15,CP!AK15)","v":0}]
["Nombre présents commission permanente",null,{"$f":"SUM(CP!D16,CP!G16,CP!J16,CP!M16,CP!P16,CP!V16,CP!Y16,CP!AB16,CP!AE16,CP!AH16,CP!AK16)","v":0}]
["Nombre de propositions formulées par les commissions permanentes",null,{"$f":"SUM(CP!E16,CP!H16,CP!K16,CP!N16,CP!Q16,CP!T16,CP!W16,CP!Z16,CP!AC16,CP!AF16,CP!AI16,CP!AL16)","v":0}]
["Nombre de propositions formulées par les commissions permanentes réalisées.",null,{"$f":"SUM(CP!F16,CP!I16,CP!L16,CP!O16,CP!R16,CP!U16,CP!X16,CP!AA16,CP!AD16,CP!AG16,CP!AJ16,CP!AM16)","v":0}]
["Nombre de postes occupés",null,{"$f":"'Autres données'!D9","v":144}]
["Nombre de postes occupés correspondant au profil recherché",null,{"$f":"'Autres données'!D10","v":144}]
["Existence ou non d’un système de documentation et d’archivage",null,{"$f":"IF('Autres données'!D15=\"OUI\",1,0)","v":1}]
["Existence ou non d’une personne en charge de la documentation et d’archivage",null,{"$f":"IF('Autres données'!D16=\"OUI\",1,0)","v":1}]
["Existence ou non d’un local dédié à la documentation et d’archivage",null,{"$f":"IF('Autres données'!D17=\"OUI\",1,0)","v":1}]
["Existence ou non de document archivés.",null,{"$f":"IF('Autres données'!D18=\"OUI\",1,0)","v":1}]
["Nombre de services publics susceptibles d’être délégués",null,{"$f":"'Services Délégués'!AC5","v":49}]
["Nombre de services publics délégués dans l’année",null,{"$f":"'Services Délégués'!AD5","v":0}]
["Nombre total de rapports produits dans l’année",null,{"$f":"COUNTIF(CC!F6:F9,\"=OUI\")","v":3}]
["Nombre total de rapports à produire dans l’année.",null,{"$f":"C2","v":3},"nombre de session dans l'année =4"]
["Nombre de réunions de la municipalité ",null,{"$f":"CC!D3","v":2}]
["Nombre de réunions prévues",null,12,"limité à 12"]
["Nombre total de sessions de conseils d’arrondissement tenues au cours de l’année",null,{"$f":"SUM(CA!B3:B50)","v":198},"somme dans CA"]
["Nombre d’arrondissements",null,13]
["Nombre total de réunions de conseils de village tenues au cours de l’année",null,{"$f":"SUM(CV!C5:C100)","v":441},"somme d&ns CV"]
["Nombre de villages",null,166]
["Nombre de documents ou d’arrêtés  portant délégation de signature pris.",null,{"$f":"'Autres données'!D19","v":0}]
["Nombre de document ou arrêtés portant délégation de pouvoir pris.",null,{"$f":"'Autres données'!D20","v":0}]
["Montant du budget prévisionnel",null,{"$f":"Budget!A5","v":82444266814}]
["Montant du Budget Consommé",null,{"$f":"E37+C39","v":17396363792}]
["Recette fiscales previsionnelles",null,{"$f":"Budget!C5","v":65894529433}]
["Dépenses d'investissement","Ressources propres",{"$f":"Budget!D5","v":9168488883}]
[null,"Investissement provenant de la coopération décentralisée",{"$f":"Budget!E5","v":0},null,{"$f":"SUM(C36:C38)","v":9168488883}]
[null,"Autres ressources",{"$f":"Budget!F5","v":0}]
["Dépenses totales de fonctionnement",null,{"$f":"Budget!G5","v":8227874909}]
["Dépenses d'entretien des équipements et ouvrages",null,{"$f":"Budget!H5","v":736582390}]
["Montant des ressources propres de l'année n-1",null,{"$f":"Budget!K5","v":18185791147}]
["Montant des ressources propres de l'année n",null,{"$f":"Budget!L5","v":16273607353}]
["Recettes fiscales recouvrées",null,{"$f":"Budget!I5","v":14493074261}]
["Montant des cotisations versées à échéance",null,{"$f":"Budget!M5","v":17000000}]
["Montant des cotisations dues à échéance",null,{"$f":"Budget!N5","v":0}]
["Nombre de marchés conclus dans l’année",null,{"$f":"Marché!E5","v":62}]
[{"$f":"[1]Marchés!A3","v":"Plan de passation des marchés publics publiés"},null,{"$f":"IF(Marché!E3=\"OUI\",1,0)","v":1}]
[{"$f":"[1]Marchés!A4:D4","v":"Nombre de marchés publics passés hors plan de passation des marchés "},null,{"$f":"Marché!E4","v":0},{"$f":"IF(Marché!E4=\"\",0,IF(Marché!E4=0,1,0))","v":1}]
["Nombre de marchés conclus dans l’année et ayant respecté les procédures.",null,{"$f":"Marché!E6","v":62}]
["Délai moyen de passation des marchés publics communaux",null,{"$f":"IF(C46=0,0,D50/C46)","v":0},{"$f":"SUM(Marché!$D$16:$XY$16)","v":0}]
["Nombre de fois où les relevés des délibérations affichés ",null,{"$f":"COUNTA(CC!E6:E9)","v":3}]
["Délai d’affichage",null,{"$f":"SUM(CC!I6:I9)/C2","v":1},"8 jours maxi aprs la fin de la session"]
["Nombre de séances de reddition de comptes",null,{"$f":"'Autres données'!D21","v":1}]
["Nombre de séances de reddition de comptes prévus.",null,{"$f":"'Autres données'!D22","v":2}]
["Nombre d’actions spécifiques réalisées en faveur des femmes",null,{"$f":"'Autres données'!D23","v":1}]
["Nombre d’actions spécifiques réalisées dans le PTA",null,{"$f":"'Autres données'!D24","v":1}]
[{"$f":"'Autres données'!C25","v":"Existence d’un lieu publique dédié à l'informations sur les prestations de la commune"},null,{"$f":"IF('Autres données'!D25=\"OUI\",1,0)","v":1}]
[{"$f":"'Autres données'!C26","v":"Existence d'une personne en charge de l'information"},null,{"$f":"IF('Autres données'!D26=\"OUI\",1,0)","v":1}]
["Nombre de cadres de concertation.",null,{"$f":"COUNTA('Cadres de Concertation'!F6:L6)","v":2},{"$f":"IF(C59<=0,0,IF(C59>3,1,C59/4))","v":0.5}]
["Nombre moyen de réunions du cadre de concertation tenu",null,{"$f":"SUM('Cadres de Concertation'!F6:L6)/C59","v":1.5},{"$f":"IF(C60<=0.5,0,IF(C60<1.5,0.25,IF(C60<2.5,0.5,IF(C60<4,0.75,1))))","v":0.5}]
["Existence ou non d’un SDAC.",null,{"$f":"IF('Autres données'!D27=\"OUI\",1,0)","v":0}]
["Existence ou non d’un PDC",null,{"$f":"IF('Autres données'!D28=\"OUI\",1,0)","v":1}]
["Montant PAI prévision",null,{"$f":"Budget!C5","v":65894529433}]
["Montant PAI réalisé",null,{"$f":"Budget!J5","v":5813172809}]
["Nombre de séances de suivi évaluation des PTA/PAI/PAD",null,{"$f":"SUM('Autres données'!D29:D31)","v":8}]
["Nombre d’infrastructures économiques et marchandes réalisées en année n",null,{"$f":"'Autres données'!D32","v":0}]
["Nombre d’infrastructures économiques et marchandes réalisées en année n-1",null,{"$f":"'Autres données'!D33","v":0}]
["Nombre d'EPC demandé (village)",null,{"$f":"SUM(CV!D5:D191)","v":0},null,null,"somme"]
["Nombre d'EPC réalisé (Village)",null,{"$f":"SUM(CV!E5:E191)","v":0}]
["Nombre de ADC demandé (Commune-Autre données)",null,{"$f":"'Autres données'!D12","v":0}]
["Nombre de ADC réalisé (Commune-Autre données)",null,{"$f":"'Autres données'!D13","v":0}]
["Existence ou inexistence d’un tableau de bord social actualisé ",null,{"$f":"IF('Autres données'!D34=\"OUI\",1,0)","v":1}]
["Date d’actualisation du tableau de bord social",null,{"$f":"'Autres données'!D35","v":"2021-01-01"}]
["Existence d'un tableau de bord",null,{"$f":"'Autres données'!D34","v":"OUI"}]
["Nombre  d’ accord de coopération décentralisée.",null,{"$f":"IF('Autres données'!D36<1,0,IF('Autres données'!D36=1,0.5,1))","v":1}]
["Nombre d’activités des accords de coopération décentralisées réalisées.",null,{"$f":"IF('Autres données'!D37<1,0,IF('Autres données'!D37<3,0.5,1))","v":1}]
["Nombre de conflits fonciers impliquant la commune",null,{"$f":"IF('Autres données'!D14=\"\",\"\",'Autres données'!D14)","v":63},{"$f":"IF(C77=\"\",0,IF(C77=0,1,IF(C77<=3,0.75,IF(C77<=8,0.5,IF(C77<=15,0.25,0)))))","v":0}]
["Nombre de participation du maire ou de son représentant au CDCC au cours de l’année",null,{"$f":"COUNTIF(Tutelle!B5:B6,\">0\")","v":2},"feuille tutelle (compter le nombre de lignes 5 ou 6 rempli"]
["Nombre de CDCC tenus dans l’année.",null,{"$f":"COUNTA(Tutelle!C5:C6)","v":2},"fixer à 2"]
["Nombre total de présence du maire ou de ses adjoints au CDCC",null,{"$f":"SUMIF(Tutelle!C5:C6,\"<>\",Tutelle!B5:B6)","v":20}]
["Nombre total attendu (Maire et ses adjoints) pour toutes les sessions",null,{"$f":"C79*Tutelle!C3","v":34}]
["Nombre d’actes communaux conformes en une année",null,{"$f":"Tutelle!D8","v":63}]
["Nombre d’actes communaux soumis à la tutelle en un an",null,{"$f":"Tutelle!D9","v":63}]
["Le budget est transmis ou pas.",null,{"$f":"IF(Tutelle!H2=\"TRANSMIS\",1,0)","v":1}]
["Délai de transmission du budget après adoption par le conseil communal",null,{"$f":"IF(Budget!Q5=\"\",0,IF(Budget!Q5<=DATE(Acceuil!P12,3,31),1,0))","v":0}]
["Délai d'approbation du budget par la tutelle",null,{"$f":"IF(OR(Tutelle!H4=\"\",Tutelle!H5=\"\"),0,IF(Tutelle!H5<=EDATE(Tutelle!H4,1),1,0))","v":1},"si<1mois, 1, 0 sinon"]
["Le compte administratif est  transmis ou pas.",null,{"$f":"IF(Tutelle!H6=\"TRANSMIS\",1,0)","v":1}]
["Délai de transmission du compte administratif  après adoption par le conseil communal",null,{"$f":"IF(Tutelle!H7=\"\",0,IF(Tutelle!H7<=DATE(Acceuil!P12+1,6,30),1,0))","v":1}]
["Délai d'approbation du compte administratif  par la tutelle",null,{"$f":"IF(OR(Tutelle!H8=\"\",Tutelle!H9=\"\"),0,IF(Tutelle!H9<=EDATE(Tutelle!H8,1),1,0))","v":1}]
["Nombre de réunions du cadre de concertation  prévu (Mairie + SDE)",null,{"$f":"'Cadres de Concertation'!C5","v":0}]
["Nombre de réunions du cadre de concertation  tenu (Mairie + SDE)",null,{"$f":"COUNTA('Cadres de Concertation'!C7:C18)","v":0},null,{"$f":"C91/C90","v":{"$error":"#DIV/0!"}},{"$f":"C92/C93","v":{"$error":"#DIV/0!"}}]
["Nombre total des membres présents (Mairie + SDE)",null,{"$f":"SUMIF('Cadres de Concertation'!C7:C18,\"<>\",'Cadres de Concertation'!B7:B18)","v":0}]
["Nombre total des membres attendus (Mairie + SDE)",null,{"$f":"'Cadres de Concertation'!C4*Récapitulatif!C91","v":0}]

{"sheet":"Indicateurs","index":12,"n_rows":45,"n_cols":4,"rows_kept":45,"cut":false,"hidden":true,"merged":[[0,0,14,0],[15,0,25,0],[26,0,30,0],[31,0,39,0],[40,0,44,0]]}
["D1",1,"Taux de realisation des sessions ordinaires du conseil communal",{"$f":"Récapitulatif!C2/4","v":0.75}]
[null,2,"Taux de services fonctionnels",{"$f":"Récapitulatif!C4/Récapitulatif!C3","v":1}]
[null,3,"Taux de participation des élus aux conseils communaux",{"$f":"Récapitulatif!C6/(Récapitulatif!C5*Récapitulatif!C2)","v":0.91156462585034015}]
[null,4,"Existance d'un manuel de procedure à jour",{"$f":"Récapitulatif!C7","v":1}]
[null,5,"Taux de personnes évaluées",{"$f":"Récapitulatif!C8/Récapitulatif!C9","v":0.93269230769230771}]
[null,6,"Taux de commissions permanentes fonctionnelles",{"$f":"((Récapitulatif!C11/Récapitulatif!C10)+(Récapitulatif!C12/CP!AP15)+(Récapitulatif!C14/Récapitulatif!C13))/3","v":{"$error":"#DIV/0!"}}]
[null,7,"Taux d'adéquation profil/poste",{"$f":"Récapitulatif!C16/Récapitulatif!C15","v":1}]
[null,8,"Fonctionalité du système de classement et d'archivage",{"$f":"SUM(Récapitulatif!C17:C20)/4","v":1}]
[null,9,"Taux de services publics locaux en gestion déléguée",{"$f":"Récapitulatif!C22/Récapitulatif!C21","v":0}]
[null,10,"Taux de realisation des rapports d'activités du maire",{"$f":"Récapitulatif!C23/Récapitulatif!C24","v":1}]
[null,11,"Taux de tenu des reunions de municipalité",{"$f":"Récapitulatif!C25/Récapitulatif!C26","v":0.16666666666666666}]
[null,12,"Taux moyen de tenue des sessions du conseil d'arrondissement",{"$f":"Récapitulatif!C27/Récapitulatif!C28","v":15.23076923076923}]
[null,13,"Taux moyen de tenue des sessions du conseil de villages",{"$f":"Récapitulatif!C29/Récapitulatif!C30","v":2.6566265060240966}]
[null,14,"Nombre de délégation de signature du maire aux adjoints",{"$f":"Récapitulatif!C31","v":0}]
[null,15,"Nombre de délégation de pouvoir éffectué par le maire",{"$f":"Récapitulatif!C32","v":0}]
["D2",1,"Taux d'éxecution du budget communal",{"$f":"Récapitulatif!C34/Récapitulatif!C33","v":0.21100756261496517}]
[null,2,"Taux d'autofinancement des Investissements",{"$f":"Récapitulatif!C36/Récapitulatif!E37","v":1}]
[null,3,"Part des Investissements dans les dépenses totales de la commune",{"$f":"Récapitulatif!E37/Récapitulatif!C34","v":0.52703478684529914}]
[null,4,"Part des dépenses d'entretien des équipements et ouvrages dans les depenses de fonctionnement",{"$f":"Récapitulatif!C40/Récapitulatif!C39","v":8.9522798796356856E-2}]
[null,5,"Adoption du budget dans les délais",{"$f":"IF(Tutelle!H3=\"\",0,IF(Tutelle!H3<DATE(Acceuil!P12,1,1),1,0))","v":1}]
[null,6,"Respect du délai de vote du compte administratif",{"$f":"IF(Tutelle!H7=\"\",0,IF(Tutelle!H7<=DATE(Acceuil!P12,6,30),1,0))","v":1}]
[null,7,"Taux d'accroissement des ressources propres",{"$f":"(Récapitulatif!C42-Récapitulatif!C41)/Récapitulatif!C41","v":-0.10514713264566669}]
[null,8,"Taux de recouvrement fiscal",{"$f":"Récapitulatif!C43/Récapitulatif!C35","v":0.21994351254509245}]
[null,9,"délai moyen de passation des marchés publics communaux",{"$f":"Récapitulatif!C50/Récapitulatif!C46","v":0}]
[null,10,"Existance des plans de passation des marchés validés et publiés",{"$f":"(Récapitulatif!C47+Récapitulatif!D48)/2","v":1}]
[null,11,"Ratio des marchés publics ayant respecté les procédures",{"$f":"Récapitulatif!C49/Récapitulatif!C46","v":1}]
["D3",1,"Affichage des relevés des décisions du Conseil Communal dans les délai",{"$f":"((Récapitulatif!C51/Récapitulatif!C2)+Récapitulatif!C52)/2","v":1}]
[null,2,"Taux de réalisation des seances de reddition de compte",{"$f":"Récapitulatif!C53/Récapitulatif!C54","v":0.5}]
[null,3,"Nombre d'actions spécifiques en faveur des femmes au cours de l'année",{"$f":"Récapitulatif!C55/Récapitulatif!C56","v":1}]
[null,4,"Existance d'un mecanisme d'information du public par rapport aux prestations de la commune",{"$f":"(Récapitulatif!C57+Récapitulatif!C58)/2","v":1}]
[null,5,"Nombre de cadre de concertation fonctionnel",{"$f":"(Récapitulatif!D59+Récapitulatif!D60)/2","v":0.5}]
["D4",1,"Existance d'un SDAC",{"$f":"Récapitulatif!C61","v":0}]
[null,2,"Existance d'un PDC",{"$f":"(Récapitulatif!C62+(Récapitulatif!C64/Récapitulatif!C63))/2","v":0.54410967692629697}]
[null,3,"Nombre de reunions de suivi-évaluation du PTA/PAI/PAD",{"$f":"Récapitulatif!C65","v":8}]
[null,4,"Taux d'accroissement des infrastructures économiques et marchandes",{"$f":"(Récapitulatif!C66-Récapitulatif!C67)/Récapitulatif!C67","v":{"$error":"#DIV/0!"}}]
[null,5,"Fonctionalité des organes de gestion fonciere aux niveaux communal et infra communal",{"$f":"((Récapitulatif!C69/Récapitulatif!C68)+(Récapitulatif!C71/Récapitulatif!C70))/2","v":{"$error":"#DIV/0!"}}]
[null,6,"Existance d'un tableau de bord social actualisé",{"$f":"Récapitulatif!C72","v":1}]
[null,7,"Nombre d'accord de cooperation decentralisée mise en œuvre ",{"$f":"(Récapitulatif!C75+Récapitulatif!C76)/2","v":1}]
[null,8,"Taux de paiement des cotisations de la commune à l'intercommunalité",{"$f":"IF(Récapitulatif!C45=0,0,Récapitulatif!C44/Récapitulatif!C45)","v":0}]
[null,9,"Nombre de contentieux fonciers impliquant la Mairie",{"$f":"Récapitulatif!D77","v":0}]
["D5",1,"Nombre de participations au CDCC",{"$f":"((Récapitulatif!C78/Récapitulatif!C79)+(Récapitulatif!C80/Récapitulatif!C81))/2","v":0.79411764705882359}]
[null,2,"Taux de conformité des actes communaux",{"$f":"IF(Récapitulatif!C83=0,0,Récapitulatif!C82/Récapitulatif!C83)","v":1}]
[null,3,"Transmission du budget dans les délais",{"$f":"SUM(Récapitulatif!C84:C86)/3","v":0.66666666666666663}]
[null,4,"Transmission du compte administratif dans les délais",{"$f":"SUM(Récapitulatif!C87:C89)/3","v":1}]
[null,5,"Animation d'un cadre de concertation entre le maire et les services déconcentrés communaux",{"$f":"(Récapitulatif!E91+Récapitulatif!F91)/2","v":{"$error":"#DIV/0!"}}]